fUST/lending_fUST_20250826
["ID","MTS","AMOUNT","RATE_DAILY","PERIOD"]
[381388223,1756179046834,-500.0,0.00032792,5]
[381388225,1756179046848,-500.0,0.00032792,5]
[381388228,1756179046861,-151.0,0.000328,15]
[381388230,1756179046872,-168.0,0.00032852,2]
[381388232,1756179046885,-537.06229316,0.00032873,5]
[381388235,1756179046896,-500.0,0.00032873,5]
[381388237,1756179046908,-553.90307583,0.00032873,5]
[381388239,1756179046921,-500.0,0.00032873,5]
[381388241,1756179046933,-500.0,0.00032873,2]
[381388244,1756179046944,-151.0,0.00032876,7]
[381388246,1756179046956,-153.629985,0.00032876,7]
[381388248,1756179046967,-151.0,0.00032876,7]
[381388250,1756179046979,-151.0,0.00032876,7]
[381388253,1756179046991,-151.0,0.00032876,7]
[381388255,1756179047002,-151.0,0.00032876,7]
[381388257,1756179047014,-152.708308,0.00032876,7]
[381388260,1756179047026,-151.0,0.00032876,7]
[381388262,1756179047038,-206.846284,0.00032876,7]
[381388264,1756179047051,-151.0,0.00032876,7]
[381388267,1756179047063,-206.846284,0.00032876,7]
[381388269,1756179047075,-151.0,0.00032876,7]
[381388271,1756179047087,-206.846284,0.00032876,7]
[381388273,1756179047099,-206.846284,0.00032876,7]
[381388275,1756179047113,-151.0,0.00032876,7]
[381388276,1756179047125,-151.0,0.00032876,7]
[381388277,1756179047138,-209.661382,0.00032876,7]
[381388278,1756179047151,-209.661382,0.00032876,7]
[381388279,1756179047163,-209.661382,0.00032876,7]
[381388280,1756179047176,-209.661382,0.00032876,7]
[381388281,1756179047187,-151.0,0.00032876,7]
[381388282,1756179047199,-151.0,0.00032876,7]
[381388283,1756179047211,-1178.52,0.00032876,120]
[381388284,1756179047224,-462.03356174,0.00032898,20]
[381388285,1756179047238,-152.31620344,0.00032898,20]
[381388286,1756179047251,-1340.0,0.00032898,20]
[381388287,1756179047263,-500.0,0.00032898,20]
[381388288,1756179047276,-500.0,0.00032898,20]
[381388289,1756179047290,-500.0,0.00032898,20]
[381388290,1756179047302,-500.0,0.00032898,10]
[381388291,1756179047314,-181.49825339,0.00032898,10]
[381388292,1756179047327,-500.0,0.00032898,10]
[381388293,1756179047339,-151.0,0.00032898,10]
[381388294,1756179047351,-154.4119943,0.00032898,10]
[381388295,1756179047364,-500.0,0.00032898,2]
[381388296,1756179047375,-16498.33209759,0.00032958,2]
[381388297,1756179047526,-978.17726909,0.00032958,2]
[381388298,1756179047679,-3693.11664052,0.00032958,2]
[381388299,1756179047688,-215.682586,0.00032959,7]
[381388300,1756179047698,-151.0,0.00032959,7]
[381388301,1756179047707,-246.58707,0.00032959,7]
[381388302,1756179047716,-246.58707,0.00032959,7]
[381388303,1756179047725,-246.58707,0.00032959,7]
[381388304,1756179048079,-246.58707,0.00032959,7]
[381388305,1756179048100,-326.492762,0.00032959,7]
[381388306,1756179048112,-326.492762,0.00032959,7]
[381388307,1756179048122,-326.492762,0.00032959,7]
[381388308,1756179048131,-326.492762,0.00032959,7]
[381388309,1756179048140,-151.0,0.00032959,7]
[381388310,1756179048149,-151.0,0.00032959,7]
[381388311,1756179048159,-151.0,0.00032968,7]
[381388312,1756179048168,-151.0,0.00032968,7]
[381388313,1756179048178,-151.0,0.00032968,7]
[381388314,1756179048187,-151.0,0.00032968,7]
[381388315,1756179048197,-151.0,0.00032968,7]
[381388316,1756179048206,-151.0,0.00032968,7]
[381388317,1756179048216,-151.0,0.00032968,7]
[381388318,1756179048226,-151.0,0.00032968,7]
[381388319,1756179048235,-1500.0,0.00032968,5]
[381388320,1756179048244,-1500.0,0.00032968,5]
[381388321,1756179048254,-1500.0,0.00032968,5]
[381388322,1756179048264,-510.66842777,0.00032968,5]
[381388323,1756179048273,-1500.0,0.00032968,5]
[381388324,1756179048283,-827.40654027,0.00032968,5]
[381388325,1756179048292,-1500.0,0.00032968,2]
[381388326,1756179048301,-1243.83973344,0.00032968,5]
[381388327,1756179048311,-1500.0,0.00032968,5]
[381388328,1756179048320,-151.0,0.0003299,7]
[381388329,1756179048330,-151.0,0.0003299,7]
[381388330,1756179048339,-151.0,0.0003299,7]
[381388331,1756179048350,-151.0,0.0003299,7]
[381388332,1756179048360,-151.0,0.0003299,7]
[381388333,1756179048370,-151.0,0.0003299,7]
[381388334,1756179048379,-151.0,0.0003299,7]
[381388335,1756179048388,-151.0,0.0003299,7]
[381388336,1756179048397,-151.0,0.0003299,7]
[381388337,1756179048407,-236.028992,0.0003299,7]
[381388338,1756179048417,-151.0,0.00033,7]
[381388339,1756179048427,-151.0,0.00033,7]
[381388340,1756179048437,-151.0,0.00033,7]
[381388341,1756179048446,-151.0,0.00033,7]
[381388342,1756179048456,-151.0,0.00033,7]
[381388343,1756179048465,-151.0,0.00033,7]
[381388344,1756179048475,-151.0,0.00033,7]
[381388345,1756179048484,-151.0,0.00033,7]
[381388346,1756179048494,-151.0,0.00033,7]
[381388347,1756179048503,-151.0,0.00033,7]
[381388348,1756179048513,-151.0,0.00033,7]
[381388349,1756179048522,-151.0,0.00033,7]
[381388350,1756179048532,-151.0,0.00033,7]
[381388351,1756179048541,-151.0,0.00033,7]
[381388352,1756179048550,-151.0,0.00033,7]
[381388353,1756179048559,-151.0,0.00033,7]
[381388354,1756179048569,-159.357602,0.00033,7]
[381388355,1756179048578,-151.0,0.00033,7]
[381388356,1756179048587,-151.0,0.00033,7]
[381388357,1756179048597,-264.936472,0.00033,7]
[381388358,1756179048606,-151.0,0.00033,7]
[381388359,1756179048616,-464.493023,0.00033,7]
[381388360,1756179048625,-464.493023,0.00033,7]
[381388361,1756179048634,-464.493023,0.00033,7]
[381388362,1756179048643,-464.493023,0.00033,7]
[381388363,1756179048652,-153.430594,0.00033,7]
[381388364,1756179048661,-325.06435442,0.00033021,2]
[381388365,1756179048774,-480.05200003,0.00033021,2]
[381388366,1756179049171,754.06212587,0.000281,2]
[381388367,1756179049192,3059.87377547,0.000281,2]
[381388368,1756179049213,1186.06409866,0.000281,2]
[381388369,1756179049341,-1880.24045542,0.00031808,2]
[381388370,1756179049351,-1880.24045542,0.00031808,2]
[381388371,1756179049361,-1880.24045542,0.00031808,2]
[381388372,1756179049371,-151.0,0.00031812,7]
[381388373,1756179049380,-151.0,0.0003199,7]
[381388374,1756179049389,-194.88364555,0.00033021,2]
[381388375,1756179049399,-1000.0,0.00033021,5]
[381388376,1756179049408,-162.69731494,0.00033045,7]
[381388377,1756179049417,-161.0,0.00033045,7]
[381388378,1756179049426,-161.0,0.00033045,7]
[381388379,1756179049435,-161.0,0.00033045,7]
[381388380,1756179049444,-170.22215783,0.00033045,7]
[381388381,1756179049454,-1764.0,0.00033045,7]
[381388382,1756179049463,-1764.0,0.00033045,7]
[381388383,1756179049472,-1764.0,0.00033045,7]
[381388384,1756179049481,-565.41423378,0.00033045,7]
[381388385,1756179049490,-201.93286099,0.00033162,2]
[381388386,1756179049499,-151.0,0.00033162,7]
[381388387,1756179049508,-206.846284,0.00033162,7]
[381388388,1756179049518,-151.0,0.00033162,7]
[381388389,1756179049527,-206.846284,0.00033162,7]
[381388390,1756179049536,-206.846284,0.00033162,7]
[381388391,1756179049545,-206.846284,0.00033162,7]
[381388392,1756179049554,-151.0,0.00033162,7]
[381388393,1756179049564,-151.0,0.00033162,7]
[381388394,1756179049574,-209.661382,0.00033162,7]
[381388395,1756179049583,-209.661382,0.00033162,7]
[381388396,1756179049592,-209.661382,0.00033162,7]
[381388397,1756179049601,-209.661382,0.00033162,7]
[381388398,1756179049611,-151.0,0.00033162,7]
[381388399,1756179049621,-151.0,0.00033162,7]
[381388400,1756179049631,-201.042231,0.00033162,7]
[381388401,1756179049642,-201.042231,0.00033162,7]
[381388402,1756179049651,-201.042231,0.00033162,7]
[381388403,1756179049660,-151.0,0.00033162,7]
[381388404,1756179049670,-201.042231,0.00033162,7]
[381388405,1756179049679,-151.0,0.00033162,7]
[381388406,1756179049688,-151.0,0.00033162,7]
[381388407,1756179049698,-151.0,0.00033162,7]
[381388408,1756179049707,-151.0,0.00033162,7]
[381388409,1756179049719,-151.0,0.00033162,7]
[381388410,1756179049728,-151.0,0.00033162,7]
[381388411,1756179049739,-151.0,0.00033162,7]
[381388412,1756179049748,-151.0,0.00033162,7]
[381388413,1756179049757,-1340.0,0.00033172,20]
[381388414,1756179049767,-500.0,0.00033172,20]
[381388415,1756179049776,-213.04705092,0.00033172,20]
[381388416,1756179049785,-635.72971178,0.00033172,10]
[381388417,1756179049795,-500.0,0.00033172,10]
[381388418,1756179049804,-269.69105637,0.00033173,2]
[381388419,1756179049814,-930.1,0.00033174,3]
[381388420,1756179049823,-346.6824717,0.00033174,3]
[381388421,1756179054196,5000.0,0.000281,2]
[381388422,1756179059744,196.0,0.000281,7]
[381388423,1756179060233,482.34244945,0.00025205,2]
[381388424,1756179062801,1657.39295203,0.000281,2]
[381388425,1756179062823,3342.60704797,0.000281,2]
[381388426,1756179071059,5000.0,0.000281,2]
[381388427,1756179074932,-160.0,0.00030411,60]
[381388428,1756179077008,-173.0,0.00030411,60]
[381388429,1756179079094,1657.40295203,0.000281,2]
[381388430,1756179079121,3342.59704797,0.000281,2]
[381388431,1756179079336,-199.0,0.00030311,60]
[381388432,1756179087493,1606.50519309,0.000281,2]
[381388433,1756179092511,483.0,0.000281,7]
[381388434,1756179095642,4567.90775894,0.000281,2]
[381388435,1756179095665,432.09224106,0.000281,2]
[381388436,1756179111255,5000.0,0.000281,2]
[381388437,1756179127375,4567.91775894,0.000281,2]
[381388438,1756179127398,432.08224106,0.000281,2]
[381388439,1756179135831,1216.81044774,0.000281,2]
[381388444,1756179144225,5000.0,0.000281,2]
[381388445,1756179152939,1529.08836957,0.000281,2]
[381388446,1756179161603,1822.02894163,0.000281,2]
[381388447,1756179161629,3177.97105837,0.000281,2]
[381388448,1756179170308,434.89494469,0.000199,2]
[381388449,1756179170402,434.89494459,0.00021627,2]
[381388450,1756179170501,434.89494459,0.00023353,2]
[381388451,1756179170598,434.89494459,0.0002508,2]
[381388452,1756179170688,434.89494459,0.00026806,6]
[381388453,1756179170974,-434.89494459,0.00028533,10]
[381388454,1756179177695,598.0447148,0.000281,2]
[381388455,1756179191241,4049.51950378,0.00027,7]
[381388456,1756179191264,10000.01,0.00027,7]
[381388457,1756179191286,4549.65484042,0.00027,7]
[381388458,1756179191912,-366.10505541,0.00030259,13]
[381388459,1756179193661,-68.78988918,0.00030259,13]
[381388460,1756179198797,-448.01288172,0.00029717,2]
[381388461,1756179209544,5000.0,0.000281,2]
[381388462,1756179209901,-143.98711828,0.00029717,2]
[381388463,1756179225508,450.35515958,0.000281,2]
[381388464,1756179225531,939.56313365,0.000281,2]
[381388465,1756179241472,3085.36415448,0.000281,2]
[381388466,1756179273153,3228.09915183,0.000281,2]
[381388467,1756179276334,-178.94,0.0002816,30]
[381388468,1756179281270,279.01629978,0.000281,2]
[381388469,1756179289630,2467.96726026,0.000281,2]
[381388470,1756179289652,920.56923313,0.000281,2]
[381388471,1756179292454,-229.06,0.00030163,24]
[381388472,1756179294521,-270.02850892,0.00030163,24]
[381388473,1756179297782,387.4865628,0.000281,2]
[381388474,1756179333222,-167.58387999,0.00029376,120]
[381388475,1756179335418,-20.41612001,0.00029376,120]
[381388476,1756179337696,-178.58387999,0.00029276,120]
[381388477,1756179339409,-20.41612001,0.00029276,120]
[381388478,1756179341345,-199.0,0.00029276,120]
[381388479,1756179355701,-155.19,0.00029071,15]
[381388480,1756179356513,618.06911564,0.000199,2]
[381388481,1756179356601,618.06911535,0.00021627,2]
[381388482,1756179356695,618.06911535,0.00023353,2]
[381388483,1756179356783,618.06911535,0.0002508,2]
[381388484,1756179356886,618.06911535,0.00026806,6]
[381388485,1756179357279,-286.54714862,0.00028533,10]
[381388486,1756179358915,-331.52196673,0.00028533,10]
[381388487,1756179358938,-166.32144756,0.00029171,15]
[381388488,1756179358966,-277.17011412,0.00030259,13]
[381388489,1756179361237,-166.31,0.00029071,15]
[381388490,1756179361266,-333.69,0.00030259,13]
[381388491,1756179363369,-156.96,0.00029371,15]
[381388492,1756179363395,-156.96,0.00029471,15]
[381388493,1756179363420,-156.96,0.00029571,15]
[381388494,1756179363443,-29.12,0.00029671,15]
[381388495,1756179365025,-127.84,0.00029671,15]
[381388496,1756179365052,-156.96,0.00029771,15]
[381388497,1756179365075,-156.96,0.00029871,15]
[381388498,1756179365097,-30.14250819,0.00029971,15]
[381388499,1756179367832,-156.96,0.00029071,15]
[381388500,1756179367855,-156.96,0.00029171,15]
[381388501,1756179367877,-387.58095426,0.00029217,2]
[381388502,1756179372273,-204.41904574,0.00029217,2]
[381388503,1756179372296,-156.96,0.00029271,15]
[381388504,1756179372318,-126.86952392,0.00029971,15]
[381388505,1756179372344,-7.20900123,0.00030259,13]
[381388506,1756179372365,-493.41669957,0.0003028,2]
[381388508,1756179375693,-80.70850431,0.0003028,2]
[381388510,1756179414628,-224.97474155,0.00029804,2]
[381388511,1756179416315,-813.0338277,0.00029804,2]
[381388512,1756179419898,-300.0,0.00029804,2]
[381388513,1756179422272,-452.0,0.00029804,2]
[381388514,1756179427498,-408.40328523,0.00029804,2]
[381388515,1756179430233,-301.0,0.00029804,2]
[381388516,1756179432089,-257.23862792,0.00029804,2]
[381388517,1756179440316,-242.76137208,0.0003028,2]
[381388518,1756179445421,-199.0,0.0003028,2]
[381388519,1756179447024,-328.42,0.0003028,2]
[381388520,1756179448749,-500.0,0.0003028,2]
[381388521,1756179452970,-300.0,0.0003028,2]
[381388522,1756179455797,-999.09190184,0.0003028,2]
[381388523,1756179460037,-437.25947781,0.0003028,2]
[381388524,1756179481186,152.95,0.00018981,2]
[381388525,1756179481471,152.95,0.00018981,2]
[381388526,1756179481782,152.95,0.00018981,2]
[381388527,1756179545905,-500.0,0.00029369,2]
[381388528,1756179552366,473.85298858,0.000199,2]
[381388529,1756179552480,473.85298843,0.00021627,2]
[381388530,1756179552586,473.85298843,0.00023353,2]
[381388531,1756179552692,473.85298843,0.0002508,2]
[381388532,1756179552805,473.85298843,0.00026806,6]
[381388533,1756179557188,-171.58,0.00028533,10]
[381388534,1756179559892,-302.27298843,0.00028533,10]
[381388535,1756179559916,-92.0,0.00029369,2]
[381388536,1756179559942,-85.0438823,0.00030259,13]
[381388537,1756179563092,-159.0,0.00028433,10]
[381388538,1756179570100,-40.0,0.00028433,10]
[381388539,1756179570123,-460.0,0.00030076,2]
[381388540,1756179571672,-179.1972291,0.00030076,2]
[381388541,1756179573305,-251.5280639,0.00030076,2]
[381388542,1756179575781,-199.0,0.00028333,10]
[381388545,1756179724039,-188.0,0.00028393,120]
[381388546,1756179724065,-83.70375378,0.00029328,2]
[381388547,1756179726441,-173.74,0.00029328,2]
[381388548,1756179729482,-199.0,0.00028293,120]
[381388549,1756179731377,-224.26,0.00029328,2]
[381388550,1756179733027,376.24759488,0.000199,2]
[381388551,1756179733119,376.24759466,0.00021627,2]
[381388552,1756179733241,376.24759466,0.00023353,2]
[381388553,1756179733342,376.24759466,0.0002508,2]
[381388554,1756179733801,-257.91717519,0.00029328,2]
[381388555,1756179734238,376.24759466,0.00026806,6]
[381388556,1756179736255,-292.5475042,0.00028533,10]
[381388557,1756179739106,-83.70009046,0.00028533,10]
[381388558,1756179739129,-70.14616284,0.00029328,2]
[381388559,1756179741240,-298.28146711,0.00029328,2]
[381388560,1756179745783,-160.0,0.00029328,2]
[381388561,1756179749279,-195.904939,0.00028851,2]
[381388562,1756179749300,-211.32205792,0.00029328,2]
[381388563,1756179750898,872.69786636,0.000281,2]
[381388564,1756179751547,-242.18752477,0.00029328,2]
[381388565,1756179752896,-207.92890959,0.00029328,2]
[381388566,1756179755810,-208.64101696,0.00029327,2]
[381388567,1756179761005,19.55784485,0.000281,2]
[381388568,1756179761028,4089.71686215,0.000281,2]
[381388569,1756179762599,-202.40687323,0.00029327,2]
[381388570,1756179764664,-88.95210981,0.00029327,2]
[381388571,1756179764685,-110.04789019,0.00029327,2]
[381388572,1756179767594,-160.0,0.00029327,2]
[381388573,1756179770306,-199.0,0.00029327,2]
[381388574,1756179774190,-208.01876055,0.00029327,2]
[381388576,1756179776518,1510.50579682,0.000281,2]
[381388577,1756179777164,-168.95,0.00029227,2]
[381388578,1756179792281,4232.95464134,0.000281,2]
[381388579,1756179808863,166.83269969,0.000281,2]
[381388580,1756179808888,846.04060946,0.000281,2]
[381388588,1756179843356,-168.95,0.00028306,2]
[381388589,1756179846192,-168.95,0.00028305,2]
[381388590,1756179848841,-131.05,0.00028305,2]
[381388591,1756179848869,-131.05,0.00028306,2]
[381388592,1756179848896,-329.9,0.00028307,2]
[381388593,1756179851023,-168.95,0.00028307,2]
[381388594,1756179853687,-168.95,0.00028307,2]
[381388595,1756179854824,-168.95,0.00028307,2]
[381388596,1756179858854,-211.39331074,0.00028307,2]
[381388597,1756179860459,-230.15569764,0.00028307,2]
[381388598,1756179864165,-311.58,0.00028307,2]
[381388599,1756179865894,-446.74343465,0.00028307,2]
[381388600,1756179867585,-199.0,0.00028307,2]
[381388601,1756179874110,-169.27932914,0.00028307,2]
[381388602,1756179879204,-451.7,0.00028307,2]
[381388603,1756179881532,-270.09977173,0.00028307,2]
[381388604,1756179883526,-400.0,0.00028307,2]
[381388605,1756179885855,-379.57,0.00028307,2]
[381388606,1756179887682,-1117.18,0.00028307,2]
[381388607,1756179889849,-155.84,0.00028307,2]
[381388608,1756179891592,-173.68,0.00028307,2]
[381388609,1756179893389,-215.84,0.00028307,2]
[381388610,1756179895177,-451.87,0.00028307,2]
[381388611,1756179896680,-811.0583017,0.00028307,2]
[381388612,1756179902287,273.036483,0.00025778,2]
[381388613,1756179902723,273.036483,0.00026044,2]
[381388614,1756179903117,273.036483,0.00028097,2]
[381388615,1756179903143,135.65352517,0.00028097,2]
[381388616,1756179911781,502.19937431,0.000199,2]
[381388617,1756179911884,502.19937409,0.00021627,2]
[381388618,1756179911980,502.19937409,0.00023353,2]
[381388619,1756179912079,502.19937409,0.0002508,2]
[381388620,1756179912190,502.19937409,0.00026806,6]
[381388621,1756179914241,-399.42199395,0.00028533,10]
[381388622,1756179918670,-102.77738014,0.00028533,10]
[381388626,1756179930123,188.0,0.00025696,120]
[381388631,1756180051115,599.0,0.000281,7]
[381388632,1756180084389,416.0,0.000281,7]
[381388633,1756180087954,442.33996344,0.000199,2]
[381388634,1756180088080,442.3399633,0.00021627,2]
[381388635,1756180088214,442.3399633,0.00023353,2]
[381388636,1756180088364,442.3399633,0.0002508,2]
[381388637,1756180088487,442.3399633,0.00026806,6]
[381388638,1756180090420,-200.7381221,0.00028157,2]
[381388639,1756180090447,-90.2618779,0.00028533,10]
[381388640,1756180093924,-352.0780854,0.00028533,10]
[381388641,1756180136597,-168.94994048,0.00028666,2]
[381388642,1756180136619,-40.05005952,0.00028666,2]
[381388643,1756180139785,-301.0,0.00028666,2]
[381388644,1756180149303,-401.27,0.00028666,2]
[381388645,1756180150954,-457.55238351,0.00028666,2]
[381388646,1756180152116,2076.8027709,0.00027972,2]
[381388647,1756180203232,469.74344116,0.00025001,2]
[381388648,1756180203257,5260.25655884,0.00025001,2]
[381388649,1756180220346,234.68371323,0.000281,2]
[381388650,1756180226535,-524.74659369,0.00028205,2]
[381388651,1756180228807,-179.53020932,0.00028205,2]
[381388653,1756180231008,-155.84,0.00028205,2]
[381388674,1756180231855,-11793.11292469,0.00028205,2]
[381388676,1756180231865,-229.06467035,0.00028837,2]
[381388678,1756180231874,-168.94994044,0.00028865,2]
[381388680,1756180231885,-182.61459,0.00028892,2]
[381388682,1756180231894,-168.94994044,0.00028937,2]
[381388684,1756180231903,-1200.0,0.00028965,2]
[381388686,1756180231913,-300.0,0.00028965,2]
[381388688,1756180231923,-300.0,0.00028965,2]
[381388690,1756180231932,-300.0,0.00028965,2]
[381388692,1756180231942,-300.0,0.00028965,2]
[381388694,1756180231951,-1200.0,0.00028965,2]
[381388696,1756180231961,-300.0,0.00028965,2]
[381388698,1756180231970,-4086.56631312,0.00028966,2]
[381388700,1756180231980,-168.94994044,0.00029009,2]
[381388702,1756180231990,-168.94994044,0.00029081,2]
[381388703,1756180232000,-168.95,0.00029083,15]
[381388704,1756180232010,-500.0,0.00029173,5]
[381388705,1756180232019,-334.43921304,0.00029173,5]
[381388706,1756180232029,-500.0,0.00029173,5]
[381388707,1756180232039,-501.46736265,0.00029173,5]
[381388708,1756180232049,-501.58102745,0.00029173,5]
[381388709,1756180232058,-500.0,0.00029173,5]
[381388710,1756180232068,-500.0,0.00029173,5]
[381388711,1756180232077,-500.0,0.00029173,5]
[381388712,1756180232088,-500.0,0.00029173,5]
[381388713,1756180232097,-500.0,0.00029173,5]
[381388714,1756180232106,-500.0,0.00029173,5]
[381388715,1756180232115,-37730.12664265,0.00029173,2]
[381388716,1756180232127,-1327.31678231,0.00029173,2]
[381388718,1756180237642,-153.61989224,0.00028865,98]
[381388719,1756180237652,-500.0,0.00029172,2]
[381388720,1756180237661,-441.06759164,0.00029172,2]
[381388721,1756180237670,-500.0,0.00029172,2]
[381388722,1756180237680,-500.0,0.00029172,2]
[381388723,1756180237691,-500.0,0.00029172,2]
[381388724,1756180237700,-500.0,0.00029172,2]
[381388725,1756180237709,-495.30969079,0.00029172,2]
[381388726,1756180237719,-500.0,0.00029172,2]
[381388727,1756180237728,-500.0,0.00029172,2]
[381388729,1756180237737,-184.73954042,0.00029172,2]
[381388731,1756180237747,-500.0,0.00029172,2]
[381388732,1756180237757,-500.0,0.00029172,2]
[381388733,1756180237766,-500.0,0.00029172,2]
[381388735,1756180237775,-500.0,0.00029172,2]
[381388737,1756180237785,-500.0,0.00029172,2]
[381388740,1756180237794,-500.0,0.00029172,2]
[381388741,1756180237804,-500.0,0.00029172,2]
[381388742,1756180237813,-500.0,0.00029172,2]
[381388743,1756180237822,-500.0,0.00029172,2]
[381388744,1756180237831,-500.0,0.00029172,2]
[381388745,1756180237840,-500.0,0.00029172,2]
[381388746,1756180237850,-500.0,0.00029172,2]
[381388747,1756180237860,-500.0,0.00029172,2]
[381388748,1756180237870,-500.0,0.00029172,2]
[381388749,1756180237879,-500.0,0.00029172,2]
[381388750,1756180237889,-500.0,0.00029172,2]
[381388751,1756180237899,-500.0,0.00029172,2]
[381388752,1756180237908,-500.0,0.00029172,2]
[381388753,1756180237917,-500.0,0.00029172,2]
[381388754,1756180237926,-500.0,0.00029172,2]
[381388755,1756180237935,-500.0,0.00029172,2]
[381388756,1756180237945,-500.0,0.00029172,2]
[381388757,1756180237955,-500.0,0.00029172,2]
[381388758,1756180237964,-500.0,0.00029172,2]
[381388759,1756180237973,-500.0,0.00029172,2]
[381388760,1756180237982,-500.0,0.00029172,2]
[381388761,1756180237992,-500.0,0.00029172,2]
[381388762,1756180238001,-500.0,0.00029172,2]
[381388763,1756180238011,-500.0,0.00029172,2]
[381388764,1756180238020,-184.00251249,0.00029172,2]
[381388765,1756180238029,-500.0,0.00029172,2]
[381388766,1756180238039,-500.0,0.00029172,2]
[381388767,1756180238049,-500.0,0.00029172,2]
[381388768,1756180238058,-500.0,0.00029172,2]
[381388769,1756180238067,-500.0,0.00029172,2]
[381388770,1756180238076,-10942.55657504,0.00029173,2]
[381388771,1756180238085,-500.0,0.00029182,2]
[381388772,1756180238095,-168.95,0.00029183,15]
[381388773,1756180238105,-592.0,0.00029206,2]
[381388774,1756180238114,-940.16,0.00029216,10]
[381388775,1756180238123,-812.43217258,0.00029226,2]
[381388776,1756180238132,-229.06467035,0.00029262,2]
[381388777,1756180238142,-168.95,0.00029283,15]
[381388778,1756180238151,-738.35,0.00029306,10]
[381388779,1756180238161,-496.34196526,0.00029315,2]
[381388780,1756180238170,-1502.51515454,0.00029315,2]
[381388781,1756180238183,-1502.51515454,0.00029315,2]
[381388782,1756180238194,-1502.51515454,0.00029315,2]
[381388783,1756180238205,-1502.51515454,0.00029315,2]
[381388784,1756180238214,-1502.51515454,0.00029315,2]
[381388785,1756180238223,-1502.51515454,0.00029315,2]
[381388786,1756180238233,-1502.51515454,0.00029315,2]
[381388787,1756180238242,-1502.51515454,0.00029315,2]
[381388788,1756180238253,-1502.51515454,0.00029315,2]
[381388789,1756180238264,-1502.51515454,0.00029315,2]
[381388790,1756180238274,-1502.51515454,0.00029315,2]
[381388791,1756180238284,-1502.51515454,0.00029315,2]
[381388792,1756180238295,-1502.51515454,0.00029315,2]
[381388793,1756180238305,-1502.51515454,0.00029315,2]
[381388794,1756180238315,-1502.51515454,0.00029315,2]
[381388795,1756180238325,-20382.5176154,0.00029316,2]
[381388796,1756180238335,-272.79092,0.00029316,2]
[381388797,1756180238344,-20382.5176154,0.00029318,2]
[381388798,1756180238354,-272.79092,0.00029318,2]
[381388799,1756180238363,-45616.7581782,0.00029328,2]
[381388800,1756180238372,-20382.5176154,0.00029363,2]
[381388801,1756180238382,-272.79092,0.00029363,2]
[381388802,1756180238391,-500.0,0.00029373,5]
[381388803,1756180238400,-500.0,0.00029373,5]
[381388804,1756180238410,-500.0,0.00029373,2]
[381388805,1756180238419,-500.0,0.00029373,5]
[381388806,1756180238430,-500.0,0.00029373,5]
[381388807,1756180238439,-500.0,0.00029373,5]
[381388808,1756180238450,-500.0,0.00029373,5]
[381388809,1756180238459,-500.0,0.00029373,5]
[381388810,1756180238468,-500.0,0.00029373,5]
[381388811,1756180238478,-500.0,0.00029373,5]
[381388812,1756180238487,-500.0,0.00029373,5]
[381388813,1756180238497,-500.0,0.00029373,5]
[381388814,1756180238506,-500.0,0.00029373,5]
[381388815,1756180238516,-500.0,0.00029373,5]
[381388816,1756180238525,-500.0,0.00029373,5]